[Event "Indian Blitz Championship 2023"]
[Site "Nashik"]
[Date "2024.03.07"]
[Round "8.2"]
[White "Dixit, Nikhil"]
[Black "Mitrabha, Guha"]
[Result "0-1"]
[ECO "B12"]
[WhiteElo "2334"]
[BlackElo "2526"]
[Annotator "TA"]
[PlyCount "120"]
[EventDate "2024.03.07"]
[EventType "blitz"]
[EventCountry "IND"]
[SourceTitle "playchess.com"]
[Source "ChessBase"]
[SourceQuality "1"]
[TimeControl "180+2"]

{[%evp 33,120,-112,-118,-108,-20,-12,-19,-27,0,0,0,0,0,-10,14,-25,-11,-10,-10,-18,-10,-43,-37,-44,-55,-45,-6,-46,-35,-44,-22,-61,-35,-35,-16,-39,0,-158,0,0,0,-118,0,0,0,-75,-62,-164,-179,-206,-181,-160,-92,-375,-291,-406,-400,-856,-875,-911,-819,-854,-708,-900,-836,-914,-900,-872,-808,-1141,-1089,-29977,-29979,-29979,-29980,-29980,-29981,-29981,-29982,-29982,-29983,-29983,-29984,-29985,-29986,-29986,-29987,-29987,-29986]} 1. e4 {[%emt 0:00:02]} c6 {[%emt 0:00:00]} 2. d4 {[%emt 0:00:08]} d5 {[%emt 0:00:01]} 3. e5 {[%emt 0:00:01]} Bf5 {[%emt 0:00:00]} 4. Nd2 {[%emt 0:00:02]} e6 {[%emt 0:00:01]} 5. Nb3 {[%emt 0:00:01]} Nd7 {[%emt 0:00:01]} 6. Nf3 {[%emt 0:00:02]} Qc7 $1 {[%emt 0:00:00][%mdl 4] outshines the older 6...Ne7. B12: Caro-Kann: Advance Variation.} 7. Be2 {[%emt 0:00:05]} f6 {[%emt 0:00:03]} 8. exf6 {[%emt 0:00:15]} Ngxf6 {[%emt 0:00:01]} 9. O-O {[%emt 0:00:02]} Bd6 {[%emt 0:00:01]} 10. c4 {[%emt 0:00:06]} Qd8 $146 {[%emt 0:00:06]} ({Predecessor:} 10... O-O 11. Bg5 Ne4 12. Bh4 Bg4 13. Bg3 dxc4 14. Bxc4 Ng5 15. Nxg5 Bxd1 16. Nxe6 Qc8 17. Nxf8+ {0-1 Korchmar,V (2438)-Tari,A (2656) Titled Tuesday intern op 07th Feb Late blitz 2023 (3)}) 11. cxd5 {[%emt 0:00:28]} exd5 {[%emt 0:00:07]} 12. Bd3 {[%emt 0:00:15]} Ne4 {[%emt 0:00:10]} 13. Bg5 {[%emt 0:00:11]} Nxg5 {[%emt 0:00:39]} 14. Bxf5 {[%emt 0:00:02]} O-O {[%emt 0:00:02]} 15. Nxg5 {[%emt 0:00:26]} Rxf5 {[%emt 0:00:02]} 16. h4 {[%emt 0:00:15]} h6 {[%emt 0:00:11]} 17. Qg4 {[%emt 0:00:01]} (17. Qd3 $11 Qf6 18. g4 Rxg5 19. hxg5 Qxg5 20. Qf5 Qxf5 21. gxf5) 17... Qf6 $17 {[%emt 0:00:01]} 18. Nf3 {[%emt 0:00:02]} Rf8 {[%emt 0:00:07]} (18... h5 $17 19. Qh3 Nf8) 19. Rae1 $11 {[%emt 0:00:02]} Qf7 {[%emt 0:00:05]} 20. Re2 {[%emt 0:00:05]} Rf4 {[%emt 0:00:12]} 21. Qe6 {[%emt 0:00:11]} Qxe6 {[%emt 0:00:17]} 22. Rxe6 {[%emt 0:00:01]} R4f6 {[%emt 0:00:01]} 23. Rfe1 {[%emt 0:00:02]} Kf7 {[%emt 0:00:03]} 24. Rxf6+ {[%emt 0:00:03]} gxf6 {[%emt 0:00:02]} 25. g3 {[%emt 0:00:02]} h5 {[%emt 0:00:02]} 26. Nc1 {[%emt 0:00:18]} Rg8 {[%emt 0:00:01]} 27. Nd3 {[%emt 0:00:02]} Nf8 {[%emt 0:00:00]} 28. Kf1 {[%emt 0:00:15]} Ne6 {[%emt 0:00:01]} 29. Nc1 {[%emt 0:00:13]} Bc7 {[%emt 0:00:11]} 30. Nb3 {[%emt 0:00:01]} Bb6 {[%emt 0:00:01]} 31. a4 {[%emt 0:00:01]} a6 {[%emt 0:00:03]} 32. Ke2 {[%emt 0:00:02]} Ng7 {[%emt 0:00:07]} 33. Kd3 {[%emt 0:00:01]} Nf5 {[%emt 0:00:01]} 34. a5 {[%emt 0:00:01]} Ba7 {[%emt 0:00:01]} 35. Nc5 $2 {[%emt 0:00:02] [#]} (35. Rc1 $11) 35... Bxc5 $2 {[%emt 0:00:02]} (35... Nxd4 $1 $17 36. Nxd4 Bxc5) 36. dxc5 $11 {[%emt 0:00:01]} Rg4 {[%emt 0:00:01]} 37. Nd2 {[%emt 0:00:14]} (37. b3 $1 $11) 37... Rb4 {[%emt 0:00:06]} (37... Ng7 $17 38. Nb3 Ne6) 38. Kc3 $11 {[%emt 0:00:02]} Rg4 {[%emt 0:00:10]} 39. Ra1 {[%emt 0:00:01]} (39. Kd3 $1 $11) 39... Ng7 {[%emt 0:00:07]} 40. Ra3 {[%emt 0:00:01]} (40. Rb1 $15) 40... Ne6 $19 {[%emt 0:00:01]} 41. b4 {[%emt 0:00:02] [#]} f5 $1 {[%emt 0:00:05]} 42. Ra1 {[%emt 0:00:01]} f4 {[%emt 0:00:02]} ({Better is} 42... Kf6 {aiming for ...f4.} 43. Rg1 f4) 43. gxf4 $2 {[%emt 0:00:07][%mdl 8192]} (43. Nf3 $17 Kf6 (43... fxg3 $2 44. Ne5+ Kg8 45. Nxg4 $18) 44. Nh2) 43... Rxf4 {[%emt 0:00:02]} 44. Rg1 {[%emt 0:00:03]} Rxh4 {[%emt 0:00:08]} 45. Nf3 {[%emt 0:00:02]} (45. Rg3 $142) 45... Rh3 $19 {[%emt 0:00:08]} 46. Rg3 {[%emt 0:00:01]} Rxg3 {[%emt 0:00:02]} 47. fxg3 {[%emt 0:00:01]} Kf6 {[%emt 0:00:01]} 48. Kd3 {[%emt 0:00:01]} Kf5 {[%emt 0:00:06]} 49. Ke3 {[%emt 0:00:01]} Ng5 {[%emt 0:00:05]} 50. Nd4+ {[%emt 0:00:07]} Kg4 {[%emt 0:00:02]} 51. b5 {[%emt 0:00:00]} cxb5 {[%emt 0:00:07]} 52. Nxb5 {[%emt 0:00:02]} axb5 {[%emt 0:00:11]} 53. c6 {[%emt 0:00:01]} bxc6 {[%emt 0:00:03]} 54. a6 {[%emt 0:00:01]} Ne6 {[%emt 0:00:01]} (54... Kxg3 $2 55. a7 $18) 55. a7 {[%emt 0:00:00]} Nc7 {[%emt 0:00:01]} (55... Kxg3 56. a8=Q (56. a8=B Nd8 57. Kd3 h4 58. Kc2 h3 59. Kd3 h2 60. Ke3 h1=Q 61. Kd4 Qc1 62. Bxc6 Qxc6 63. Kd3 Nf7 64. Ke2 Qc1 65. Kd3 Kf3 66. Kd4 Qc4#) 56... Kg4 57. Qxc6 $18) 56. Kd4 {[%emt 0:00:01]} b4 {[%emt 0:00:06]} 57. Kc5 {[%emt 0:00:01]} b3 {[%emt 0:00:01]} 58. Kxc6 {[%emt 0:00:01]} Na8 {[%emt 0:00:01]} 59. Kb7 {[%emt 0:00:01]} b2 {[%emt 0:00:03]} 60. Kxa8 {[%emt 0:00:02]} Kf3 {[%emt 0:00:01]} (60... b1=B $2 {perishes.} 61. Kb8 $18) 0-1

[Event "Indian Blitz Championship 2023"]
[Site "Nashik"]
[Date "2024.03.07"]
[Round "8.3"]
[White "Kaustuv, Kundu"]
[Black "Raja Rithvik R"]
[Result "0-1"]
[ECO "A13"]
[WhiteElo "2388"]
[BlackElo "2532"]
[Annotator "ChessBase"]
[PlyCount "96"]
[EventDate "2024.03.07"]
[EventType "blitz"]
[EventCountry "IND"]
[SourceTitle "playchess.com"]
[Source "ChessBase"]
[SourceQuality "1"]
[TimeControl "180+2"]

1. Nf3 {[%emt 0:00:02]} d5 {[%emt 0:00:01]} 2. e3 {[%emt 0:00:01]} Nf6 {[%emt 0:00:01]} 3. c4 {[%emt 0:00:02]} e6 {[%emt 0:00:02]} 4. b3 {[%emt 0:00:01]} b6 {[%emt 0:00:06]} 5. Bb2 {[%emt 0:00:02]} Bb7 {[%emt 0:00:01]} 6. Nc3 {[%emt 0:00:02]} Nbd7 {[%emt 0:00:05]} 7. Rc1 {[%emt 0:00:12]} a6 {[%emt 0:00:06]} 8. cxd5 {[%emt 0:00:02]} exd5 {[%emt 0:00:01]} 9. Ne2 {[%emt 0:00:08]} c5 {[%emt 0:00:05]} 10. Ng3 {[%emt 0:00:08]} g6 {[%emt 0:00:06]} 11. Be2 {[%emt 0:00:02]} Bg7 {[%emt 0:00:08]} 12. O-O {[%emt 0:00:03]} h5 {[%emt 0:00:11]} 13. Re1 {[%emt 0:00:28]} h4 {[%emt 0:00:06]} 14. Nf1 {[%emt 0:00:02]} h3 {[%emt 0:00:02]} 15. g3 {[%emt 0:00:01]} Qe7 {[%emt 0:00:18]} 16. d4 {[%emt 0:00:05]} Ne4 {[%emt 0:00:08]} 17. N3d2 {[%emt 0:00:13]} Rd8 {[%emt 0:00:48]} 18. Qc2 {[%emt 0:00:18]} cxd4 {[%emt 0:00:14]} 19. Bxd4 {[%emt 0:00:11]} Bxd4 {[%emt 0:00:02]} 20. exd4 {[%emt 0:00:02]} O-O {[%emt 0:00:02]} 21. Bg4 {[%emt 0:00:19]} Rc8 {[%emt 0:00:23]} 22. Qd3 {[%emt 0:00:01]} Rxc1 {[%emt 0:00:02]} 23. Rxc1 {[%emt 0:00:01]} Ng5 {[%emt 0:00:20]} 24. Rc7 {[%emt 0:00:06]} Bc8 {[%emt 0:00:05]} 25. Qe3 {[%emt 0:00:07]} Qd8 {[%emt 0:00:11]} 26. Rxc8 {[%emt 0:00:02]} Qxc8 {[%emt 0:00:00]} 27. Qxg5 {[%emt 0:00:02]} Qc6 {[%emt 0:00:02]} 28. Bxh3 {[%emt 0:00:05]} Nf6 {[%emt 0:00:00]} 29. Bg2 {[%emt 0:00:07]} Re8 {[%emt 0:00:05]} 30. h4 {[%emt 0:00:02]} Re1 {[%emt 0:00:01]} 31. Nf3 {[%emt 0:00:07]} Re2 {[%emt 0:00:02]} 32. Ne5 {[%emt 0:00:03]} Qe6 {[%emt 0:00:02]} 33. Qf4 {[%emt 0:00:12]} Rxa2 {[%emt 0:00:04]} 34. Ne3 {[%emt 0:00:07]} Rb2 {[%emt 0:00:08]} 35. N3g4 {[%emt 0:00:01]} Kg7 {[%emt 0:00:06]} 36. Nxf6 {[%emt 0:00:14]} Qxf6 {[%emt 0:00:01]} 37. Qe3 {[%emt 0:00:01]} Qe6 {[%emt 0:00:03]} 38. h5 {[%emt 0:00:01]} f6 {[%emt 0:00:03]} 39. Nxg6 {[%emt 0:00:25]} Qxe3 {[%emt 0:00:01]} 40. fxe3 {[%emt 0:00:01]} Rxb3 {[%emt 0:00:02]} 41. Nh4 {[%emt 0:00:03]} a5 {[%emt 0:00:03]} 42. Nf5+ {[%emt 0:00:02]} Kh8 {[%emt 0:00:02]} 43. Bxd5 {[%emt 0:00:02]} Rb1+ {[%emt 0:00:01]} 44. Kf2 {[%emt 0:00:02]} a4 {[%emt 0:00:00]} 45. e4 {[%emt 0:00:08]} a3 {[%emt 0:00:01]} 46. e5 {[%emt 0:00:01]} fxe5 {[%emt 0:00:01]} 47. dxe5 {[%emt 0:00:01]} Rb5 {[%emt 0:00:01]} 48. Ne3 {[%emt 0:00:03]} Rxd5 {[%emt 0:00:01]} 0-1

[Event "Indian Blitz Championship 2023"]
[Site "Nashik"]
[Date "2024.03.07"]
[Round "8.4"]
[White "Mohammad Nubairshah Shaikh"]
[Black "Ayush Sharma"]
[Result "0-1"]
[ECO "A08"]
[WhiteElo "2436"]
[BlackElo "2311"]
[Annotator "TA"]
[PlyCount "56"]
[EventDate "2024.03.07"]
[EventType "blitz"]
[EventCountry "IND"]
[SourceTitle "playchess.com"]
[Source "ChessBase"]
[SourceQuality "1"]
[TimeControl "180+2"]

{[%evp 9,56,12,17,0,10,0,10,0,-18,-69,-52,-91,-94,-98,-92,-186,-191,-185,-179,-263,-271,-364,-368,-370,-365,-342,-349,-321,-322,-559,-550,-542,-546,-758,-760,-806,-783,-861,-823,-765,-417,-861,-581,-1121,-1125,-29987,-29988,-29997,-29998]} 1. Nf3 {[%emt 0:00:00]} Nf6 {[%emt 0:00:01]} 2. g3 {[%emt 0:00:01]} d5 {[%emt 0:00:02]} 3. Bg2 {[%emt 0:00:01]} c5 {[%emt 0:00:01]} 4. O-O {[%emt 0:00:02]} g6 {[%emt 0:00:01]} 5. c4 {[%emt 0:00:06]} Bg7 {[%emt 0:00:11]} 6. d4 {[%emt 0:00:01]} cxd4 {[%emt 0:00:11]} 7. cxd5 {[%emt 0:00:01]} O-O {[%emt 0:00:07][%cal Bh8f8,Bf8d8,Bd8d1][%mdl 32]} 8. d6 {[%emt 0:00:17] The position is equal.} Qxd6 {[%emt 0:00:13] With the idea ...Nc6.} 9. Bf4 {[%emt 0:00:42]} (9. Qxd4 $11 Qa6 10. Nc3) 9... Qb6 $15 {[%emt 0:00:00]} 10. Qxd4 {[%emt 0:00:01]} Qxd4 {[%emt 0:00:20]} 11. Nxd4 {[%emt 0:00:01]} Ng4 {[%emt 0:00:20]} 12. Be3 {[%emt 0:00:42]} (12. Nb5 $17 Bxb2 13. Nc7 Bxa1 14. Nxa8) 12... Rd8 $19 {[%emt 0:00:07]} 13. Rc1 {[%emt 0:00:47][%cal Ob1d2]} Na6 $1 {[%emt 0:00:23]} ({And not} 13... Bxd4 14. Bxd4 Nc6 15. Bc5 $14 (15. Bxc6 Rxd4 16. Bf3 Ne5 $11)) 14. Rc4 {[%emt 0:00:31]} (14. h3 {was the only chance.} Nxe3 (14... Bxd4 15. Bxd4 Rxd4 16. hxg4 $15) 15. fxe3) 14... e5 {[%emt 0:00:20]} ({Weaker is} 14... Nxe3 15. fxe3 e5 16. Nb3 $19) 15. Nb3 {[%emt 0:00:00]} Rd1+ {[%emt 0:00:02]} 16. Bf1 {[%emt 0:00:01]} Nxe3 {[%emt 0:00:01]} 17. fxe3 {[%emt 0:00:04]} Be6 {[%emt 0:00:09]} 18. Rc2 {[%emt 0:00:12]} Rad8 {[%emt 0:01:09]} 19. N1d2 $2 {[%emt 0:00:04] [#]} (19. Rd2) 19... Rxa1 {[%emt 0:00:00]} 20. Nxa1 {[%emt 0:00:01]} Nb4 {[%emt 0:00:00]} 21. Rc7 {[%emt 0:00:06]} Rxd2 {[%emt 0:00:00]} 22. Rxb7 {[%emt 0:00:00]} Nd5 {[%emt 0:00:00]} 23. Rb8+ {[%emt 0:00:02]} Bf8 {[%emt 0:00:00]} 24. Kf2 {[%emt 0:00:02]} Kg7 {[%emt 0:00:00]} 25. Bg2 {[%emt 0:00:04]} (25. Ke1 $142 Nxe3 (25... Bb4 26. Rxb4 Nxb4 27. Kxd2 $15) 26. Kxd2 Nxf1+ 27. Ke1 Nxh2 28. Nb3) 25... Bc5 {[%emt 0:00:00]} 26. Nb3 {[%emt 0:00:01][%cal Ob3c5]} Bxe3+ {[%emt 0:00:00]} 27. Ke1 {[%emt 0:00:00]} Rxb2 {[%emt 0:00:00]} 28. Kd1 {[%emt 0:00:03]} Nc3+ {[%emt 0:00:00] White got outplayed after the opening.   Weighted Error Value: White=1.22/Black=0.30.  Mistake:       	White=4     	---        Inaccurate:     	White=5     	---        OK:         	White=3     	Black=8      Best:        	---       	Black=4      Strong:       	---       	Black=1} 0-1

[Event "Indian Blitz Championship 2023"]
[Site "Nashik"]
[Date "2024.03.07"]
[Round "8.5"]
[White "Karthik Venkataraman"]
[Black "Aakash Sharadchandra, Dalvi"]
[Result "1/2-1/2"]
[ECO "B43"]
[WhiteElo "2609"]
[BlackElo "2291"]
[Annotator "TA"]
[PlyCount "79"]
[EventDate "2024.03.07"]
[EventType "blitz"]
[EventCountry "IND"]
[SourceTitle "playchess.com"]
[Source "ChessBase"]
[SourceQuality "1"]
[TimeControl "180+2"]

{[%evp 12,79,27,36,37,37,57,54,85,93,86,82,127,93,198,196,181,186,200,187,250,232,332,272,223,118,141,92,97,43,46,12,16,15,71,85,84,55,50,54,71,67,116,66,82,86,86,56,64,0,0,0,0,0,0,0,0,0,0,0,0,0,0,0,0,0,0,0,0,0]} 1. e4 {[%emt 0:00:01]} c5 {[%emt 0:00:00]} 2. Nf3 {[%emt 0:00:01]} e6 {[%emt 0:00:01]} 3. d4 {[%emt 0:00:02]} cxd4 {[%emt 0:00:01]} 4. Nxd4 {[%emt 0:00:00]} a6 {[%emt 0:00:01]} 5. a3 {[%emt 0:00:01]} Nf6 {[%emt 0:00:01]} 6. Nc3 {[%emt 0:00:00]} Qc7 {[%emt 0:00:01]} 7. f4 {[%emt 0:00:02]} d6 {[%emt 0:00:01]} 8. Be3 {[%emt 0:00:00]} Nbd7 {[%emt 0:00:02]} 9. g4 {[%emt 0:00:01][%cal Bg2g4,Bg4g5][%mdl 32]} Nb6 {[%emt 0:00:13] Weiß steht etwas besser.} 10. g5 {[%emt 0:00:02]} Nfd7 {[%emt 0:00:01]} 11. h4 {[%emt 0:00:10][%cal Bh2h4,Bh4h5][%mdl 32] Weiß steht deutlich aktiver. Die schwarzen Türme stehen passiv.} Be7 {[%emt 0:00:03]} 12. h5 {[%emt 0:00:03]} Nc4 {[%emt 0:00:08] Lässt Qd2 nicht zu} (12... Nc5 $16) 13. Bxc4 $18 {[%emt 0:00:01]} Qxc4 {[%emt 0:00:02]} 14. Qf3 {[%emt 0:00:04]} h6 {[%emt 0:00:35]} 15. gxh6 {[%emt 0:00:18]} Rxh6 {[%emt 0:00:08]} (15... gxh6 {ist eine bessere Verteidigung.} 16. O-O-O b5) 16. O-O-O {[%emt 0:00:06]} Rh7 {[%emt 0:00:07]} (16... b5 $142 17. f5 b4) 17. f5 {[%emt 0:00:19]} Ne5 {[%emt 0:00:05]} 18. Qh3 {[%emt 0:00:04]} (18. Qg3 $18) 18... Bd7 $16 {[%emt 0:00:05]} 19. fxe6 {[%emt 0:00:10]} ({Vorzuziehen ist} 19. Bf4) 19... fxe6 {[%emt 0:00:09]} 20. Rhg1 {[%emt 0:00:29]} ({Günstiger ist} 20. Nf3 $16 {Droht Nxe5 und aus.} Nxf3 21. Qxf3) 20... O-O-O $14 {[%emt 0:00:05][%cal Ba8d8,Bd8h8,Bh8h5][%mdl 32]} 21. Bg5 {[%emt 0:00:00]} Bxg5+ {[%emt 0:00:08]} 22. Rxg5 {[%emt 0:00:01]} Kb8 {[%emt 0:00:09]} (22... g6 $11 {bleibt in der Remisbreite.}) 23. Qg3 $16 {[%emt 0:00:10]} Rdh8 {[%emt 0:00:15]} 24. Nf3 {[%emt 0:00:15]} (24. Rxg7 {wäre vielleicht verwirrender.} Rxg7 25. Qxg7 Rxh5 26. Qf8+) 24... Nxf3 {[%emt 0:00:12]} 25. Qxf3 {[%emt 0:00:01]} Qc6 {[%emt 0:00:31]} 26. Qg3 {[%emt 0:00:15]} e5 {[%emt 0:00:01] [#]} (26... Rxh5 $14 27. Rxg7 (27. Qxd6+ $2 {ist das falsche Schlagen.} Qxd6 28. Rxd6 Rxg5 $19) 27... Kc7) 27. Rxg7 {[%emt 0:00:29]} (27. Rg6 $1 $16 {[%cal Rg6d6]} Qc7 (27... Rxh5 $2 {verliert.} 28. Rgxd6 Rh3 29. Qg6 $18) 28. Rgxd6) 27... Rxg7 {[%emt 0:00:05]} 28. Qxg7 {[%emt 0:00:01]} Rxh5 {[%emt 0:00:03]} 29. Qf8+ {[%emt 0:00:01]} Ka7 {[%emt 0:00:08]} 30. Rxd6 {[%emt 0:00:11]} (30. Qxd6 $14 Qxd6 31. Rxd6) 30... Rh1+ $11 {[%emt 0:00:12] Die Stellung ist ausgeglichen.} 31. Rd1 {[%emt 0:00:24]} Rxd1+ {[%emt 0:00:03]} 32. Kxd1 {[%emt 0:00:01][%mdl 4096] Endspiel. KQB-KQN} Qb6 {[%emt 0:00:06]} 33. Qb4 {[%emt 0:00:21]} Bg4+ {[%emt 0:00:10]} 34. Kd2 {[%emt 0:00:03]} Qf2+ {[%emt 0:00:01]} 35. Kd3 {[%emt 0:00:00]} Qf1+ {[%emt 0:00:08]} 36. Kd2 {[%emt 0:00:01]} Qf2+ {[%emt 0:00:07]} 37. Kd3 {[%emt 0:00:01]} Qf1+ {[%emt 0:00:03]} 38. Kd2 {[%emt 0:00:00]} Qf2+ {[%emt 0:00:01]} 39. Kd3 {[%emt 0:00:01]} Qf1+ {[%emt 0:00:05]} 40. Kd2 {[%emt 0:00:05] Schwarz hat sich erfolgreich gewehrt.   Gewichteter Fehlerwert: Weiß=0.20 (präzise) /Schwarz=0.16 (sehr präzise) .  Fehler:       	Weiß=5     	Schwarz=5     Ungenau:       	Weiß=3     	Schwarz=2     OK:         	Weiß=8     	Schwarz=9     Bester:       	Weiß=4     	Schwarz=5} 1/2-1/2

[Event "Indian Blitz Championship 2023"]
[Site "Nashik"]
[Date "2024.03.07"]
[Round "8.6"]
[White "Sai Agni Jeevitesh, J."]
[Black "Ravi, Teja S."]
[Result "0-1"]
[ECO "D10"]
[WhiteElo "2285"]
[BlackElo "2437"]
[Annotator "TA"]
[PlyCount "86"]
[EventDate "2024.03.07"]
[EventType "blitz"]
[EventCountry "IND"]
[SourceTitle "playchess.com"]
[Source "ChessBase"]
[SourceQuality "1"]
[TimeControl "180+2"]

{[%evp 16,86,31,31,35,-22,0,0,0,0,10,11,16,0,26,0,22,-7,32,-36,-33,-106,-106,-117,-113,-115,-114,-114,-110,-130,-132,-155,-141,-167,-121,-118,-106,-112,-118,-114,-124,-125,-86,-175,-175,-199,-187,-231,-179,-238,-181,-236,-215,-214,-216,-285,-225,-382,-375,-345,-179,-555,-520,-1983,-1578,-11170,-5539,-29981,-5214,-1665,-789,-29982,-29983]} 1. d4 {[%emt 0:00:01]} d5 {[%emt 0:03:04]} 2. c4 {[%emt 0:00:01]} c6 {[%emt 0:00:02]} 3. cxd5 {[%emt 0:00:02]} cxd5 {[%emt 0:00:00]} 4. Bf4 {[%emt 0:00:00]} Nc6 {[%emt 0:00:00]} 5. e3 {[%emt 0:00:03]} Nf6 {[%emt 0:00:00]} 6. Nc3 {[%emt 0:00:00]} a6 {[%emt 0:00:00]} 7. Bd3 {[%emt 0:00:03]} Bg4 {[%emt 0:00:00]} 8. f3 {[%emt 0:00:01]} Bd7 {[%emt 0:00:00]} 9. Nge2 {[%emt 0:00:01]} e6 {[%emt 0:00:00]} 10. O-O {[%emt 0:00:22]} (10. g4 $14) 10... Be7 {[%emt 0:00:00]} 11. h3 {[%emt 0:00:11]} O-O {[%emt 0:00:00] The position is equal.} 12. Rc1 {[%emt 0:00:01]} Rc8 {[%emt 0:00:00]} 13. Na4 {[%emt 0:00:19]} Re8 {[%emt 0:00:00]} 14. Nc5 {[%emt 0:00:07]} Bxc5 {[%emt 0:00:00]} 15. Rxc5 {[%emt 0:00:05]} e5 {[%emt 0:00:00]} 16. Bg5 {[%emt 0:00:13]} exd4 {[%emt 0:00:00]} 17. exd4 {[%emt 0:00:03]} (17. Rxd5 $14 Re5 18. Bxf6 gxf6 19. Rxe5 Nxe5 20. Be4 (20. Nxd4 Nxd3 21. Qxd3 Bb5 $17) 20... dxe3 21. Qb3 (21. Bxb7 Rb8 $11)) 17... Nxd4 {[%emt 0:00:00]} 18. Bxf6 {[%emt 0:00:44]} (18. Rxc8 $15 Nxe2+ 19. Qxe2 Qxc8 20. Qf2) 18... Qxf6 {[%emt 0:00:00]} 19. Rxd5 {[%emt 0:00:11]} Nxe2+ {[%emt 0:00:00]} 20. Bxe2 {[%emt 0:00:01]} Be6 {[%emt 0:00:36]} 21. Rd2 {[%emt 0:00:15]} Bxa2 {[%emt 0:00:00]} 22. Kh1 {[%emt 0:00:13]} Be6 {[%emt 0:00:00] Black is much more active.} 23. Bd3 {[%emt 0:00:07]} g6 {[%emt 0:00:00]} 24. Be4 {[%emt 0:00:01]} Rc7 {[%emt 0:00:00]} (24... b5 $19 25. Qa1 Qf4) 25. Qa4 $17 {[%emt 0:00:02]} Rd8 {[%emt 0:00:00]} 26. Rxd8+ {[%emt 0:00:09]} Qxd8 {[%emt 0:00:00]} 27. Rd1 {[%emt 0:00:00]} Qc8 {[%emt 0:00:00]} 28. Kh2 {[%emt 0:00:18]} Rc4 {[%emt 0:00:00]} 29. Qa3 {[%emt 0:00:09]} (29. Qa5 $17 Qb8+ 30. Kh1) 29... Qc7+ $19 {[%emt 0:00:00]} 30. Kh1 {[%emt 0:00:03]} Rc1 {[%emt 0:00:00]} 31. Rxc1 {[%emt 0:00:03]} Qxc1+ {[%emt 0:00:00][%mdl 4096] Endgame. KQB-KQB} 32. Kh2 {[%emt 0:00:00]} Qc7+ {[%emt 0:00:00]} 33. Kh1 {[%emt 0:00:02]} (33. g3 {might work better.}) 33... a5 {[%emt 0:00:00]} 34. Qe3 {[%emt 0:00:10]} b5 {[%emt 0:00:00]} 35. Qd4 {[%emt 0:00:01]} b4 {[%emt 0:00:00]} 36. h4 $2 {[%emt 0:00:02] [#]} (36. Kg1 {was called for.}) 36... h5 {[%emt 0:00:00]} 37. Qf6 {[%emt 0:00:03][%cal Oe4g6]} Qd6 {[%emt 0:00:00]} (37... Qc4 $142 {aiming for ...a4.} 38. Kh2 a4 39. Qd8+ Kh7) 38. Kg1 $2 {[%emt 0:00:06]} (38. Bxg6 fxg6 39. Qxg6+ Kf8 (39... Kh8 40. Qxh5+ Kg7 41. Qxa5 $15) 40. Qh6+ Ke7 41. Qg5+ Kd7 42. Qxa5) 38... a4 {[%emt 0:00:00]} 39. Kh1 {[%emt 0:00:04]} (39. Bxg6 $142 Qb6+ (39... fxg6 $2 40. Qxg6+ Kf8 41. Qh6+ Ke8 42. Qxh5+ Bf7 43. Qb5+ Kf8 44. Qxa4 $19) 40. Kh2 fxg6 41. Kh1 (41. Qxg6+ $2 Kf8 $19)) 39... a3 {[%emt 0:00:00]} 40. bxa3 {[%emt 0:00:00]} bxa3 {[%emt 0:00:00]} 41. Qc3 {[%emt 0:00:04]} a2 {[%emt 0:00:00]} (41... Qd1+ $142 42. Kh2 a2 43. Bxg6 a1=Q (43... a1=B $2 44. Bxf7+ Bxf7 45. Qe3 $19) 44. Qxa1 Qxa1 45. Be4 Qe1 46. Bb7 Qxh4+ 47. Kg1 Kg7 48. f4 Qe1+ (48... Qxf4 {is a self mate.} 49. Bf3 Bg4 50. Ba8 h4 51. Kh1 Qf2 52. Kh2 f5 53. Kh1 f4 54. Be4 h3 55. Bd5 f3 56. Bxf3 Bxf3 57. gxf3 Qg2#) 49. Kh2 Qh4+ 50. Kg1 Qxf4 (50... Qe1+ {gets mated.} 51. Kh2 Qh4+ 52. Kg1) 51. Bf3 Qd4+ 52. Kh1 Bd5 53. Bxd5 Qxd5 54. Kg1 Qd2 55. Kh2 Qf2 (55... Qf4+ {leads to mate.} 56. Kg1 h4 57. Kh1 Qf1+ 58. Kh2 Qe1 59. g4 Qf2+ 60. Kh1 h3 61. g5 Qg2#) 56. Kh3 h4 57. Kh2 Qe1 58. g4 Qg3+ (58... hxg3+ 59. Kh3 Qf2 60. Kh4 Kg6 61. Kh3 Kf5 62. Kh4 Qh2#) 59. Kh1 h3 60. g5 Qg2#) 42. Qa1 {[%emt 0:00:02]} Qf8 {[%emt 0:00:00]} (42... Qb4 $142 43. g4 hxg4) 43. Kh2 {[%emt 0:00:01]} Qg7 {[%emt 0:00:00] Weighted Error Value: White=0.93/Black=0.68.  Mistake:       	White=8     	Black=2      Inaccurate:     	White=5     	Black=3      OK:         	White=6     	Black=12     Best:        	White=1     	Black=1} 0-1